[Event "Open Nuevo Centro. Jornada 1"]
[Site "Chess.com"]
[Date "2020.06.19"]
[Round "1"]
[White "Rabbani Perez, Oumaima "]
[Black "Gukasov, Artem"]
[Result "0-1"]
[WhiteElo "729"]
[BlackElo "1566"]
[TimeControl "180+2"]
[EndTime "10:38:55 PDT"]
[Termination "Victoria de ArtemGukasov por tiempo"]

1. e3 {[%clk 0:02:58.2]} 1... e6 {[%clk 0:02:59.7]} 2. Nf3 {[%clk 0:02:51.9]}
2... d5 {[%clk 0:03:00.3]} 3. Bd3 {[%clk 0:02:50.6]} 3... c5 {[%clk 0:02:56.7]}
4. Bb5+ {[%clk 0:02:46.3]} 4... Nc6 {[%clk 0:02:49.3]} 5. Ne5 {[%clk 0:02:44.4]}
5... Qd6 {[%clk 0:02:46.5]} 6. Bxc6+ {[%clk 0:02:41.2]} 6... bxc6 {[%clk
0:02:48.4]} 7. Nd3 {[%clk 0:02:37.2]} 7... c4 {[%clk 0:02:48.8]} 8. Qe2 {[%clk
0:02:28]} 8... cxd3 {[%clk 0:02:47.9]} 9. Qxd3 {[%clk 0:02:27.9]} 9... Nf6
{[%clk 0:02:46.9]} 10. O-O {[%clk 0:02:25.6]} 10... Be7 {[%clk 0:02:46.1]} 11.
Rd1 {[%clk 0:02:25.7]} 11... Bb7 {[%clk 0:02:35]} 12. Qa3 {[%clk 0:02:16.5]}
12... Qxa3 {[%clk 0:02:27.4]} 13. bxa3 {[%clk 0:02:16.4]} 13... O-O {[%clk
0:02:22.9]} 14. Bb2 {[%clk 0:02:11]} 14... c5 {[%clk 0:02:15]} 15. a4 {[%clk
0:02:04.8]} 15... Rab8 {[%clk 0:02:13.3]} 16. Nc3 {[%clk 0:02:04.2]} 16... Ba6
{[%clk 0:02:12.8]} 17. Ba3 {[%clk 0:01:50.8]} 17... Rb7 {[%clk 0:02:09.6]} 18.
Rdb1 {[%clk 0:01:42.8]} 18... Rfb8 {[%clk 0:02:08.2]} 19. Rxb7 {[%clk 0:01:41]}
19... Rxb7 {[%clk 0:02:01.8]} 20. Rb1 {[%clk 0:01:35.7]} 20... Rxb1+ {[%clk
0:01:56.7]} 21. Nxb1 {[%clk 0:01:35.5]} 21... Kf8 {[%clk 0:01:54.4]} 22. Bb2
{[%clk 0:01:30]} 22... c4 {[%clk 0:01:54]} 23. d3 {[%clk 0:01:28.1]} 23... cxd3
{[%clk 0:01:45.9]} 24. cxd3 {[%clk 0:01:25.3]} 24... Bxd3 {[%clk 0:01:47.8]} 25.
Nc3 {[%clk 0:01:22.4]} 25... Ne4 {[%clk 0:01:47.1]} 26. Nb5 {[%clk 0:01:21.6]}
26... Bxb5 {[%clk 0:01:47.6]} 27. axb5 {[%clk 0:01:21.2]} 27... Nc5 {[%clk
0:01:47.6]} 28. f3 {[%clk 0:01:10]} 28... Na4 {[%clk 0:01:33.3]} 29. Bd4 {[%clk
0:01:02.9]} 29... Bc5 {[%clk 0:01:23.5]} 30. Be5 {[%clk 0:01:01.7]} 30... f6
{[%clk 0:01:20.8]} 31. Bb8 {[%clk 0:00:56.2]} 31... Ke7 {[%clk 0:01:17.6]} 32.
Bc7 {[%clk 0:00:53.7]} 32... Bxe3+ {[%clk 0:01:16.8]} 33. Kf1 {[%clk 0:00:41.6]}
33... Bb6 {[%clk 0:01:16.9]} 34. Bf4 {[%clk 0:00:39.1]} 34... e5 {[%clk
0:01:13]} 35. Bd2 {[%clk 0:00:34.9]} 35... d4 {[%clk 0:01:12.8]} 36. Bb4+ {[%clk
0:00:33.9]} 36... Bc5 {[%clk 0:01:12.7]} 37. Ba5 {[%clk 0:00:33.8]} 37... Nb6
{[%clk 0:01:11.6]} 38. h4 {[%clk 0:00:26.9]} 38... Nc4 {[%clk 0:01:05.4]} 39.
Bc7 {[%clk 0:00:22.1]} 39... Bb6 {[%clk 0:01:00.3]} 40. Bb8 {[%clk 0:00:19.3]}
40... Kd7 {[%clk 0:00:58.2]} 41. g4 {[%clk 0:00:15.4]} 41... Kc8 {[%clk
0:00:56.8]} 42. Bd6 {[%clk 0:00:12.7]} 42... Nxd6 {[%clk 0:00:49.4]} 43. g5
{[%clk 0:00:11.6]} 43... fxg5 {[%clk 0:00:50.2]} 44. hxg5 {[%clk 0:00:11.9]}
44... g6 {[%clk 0:00:52.1]} 45. a4 {[%clk 0:00:07.6]} 45... Kd7 {[%clk
0:00:50.3]} 0

[Event "Open Nuevo Centro. Jornada 1"]
[Site "Chess.com"]
[Date "2020.06.19"]
[Round "1"]
[White "Ainsa Jimenez, Lucas"]
[Black "Donate Moreno, Silvia"]
[Result "0-1"]
[WhiteElo "956"]
[BlackElo "1791"]
[TimeControl "180+2"]
[EndTime "10:39:00 PDT"]
[Termination "Victoria de 2camarones por jaque mate"]

1. e4 {[%clk 0:03:01]} 1... c5 {[%clk 0:02:58.4]} 2. Nf3 {[%clk 0:03:00.1]} 2...
d6 {[%clk 0:02:58.2]} 3. d4 {[%clk 0:02:57.6]} 3... cxd4 {[%clk 0:03:00.1]} 4.
Nxd4 {[%clk 0:02:58.2]} 4... Nf6 {[%clk 0:03:00]} 5. Nc3 {[%clk 0:02:55.6]} 5...
e5 {[%clk 0:02:57.4]} 6. Nf3 {[%clk 0:02:55.5]} 6... Be7 {[%clk 0:02:56.1]} 7.
Bc4 {[%clk 0:02:55.3]} 7... O-O {[%clk 0:02:52.4]} 8. Ng5 {[%clk 0:02:53]} 8...
Nc6 {[%clk 0:02:47.6]} 9. Nd5 {[%clk 0:02:49.8]} 9... h6 {[%clk 0:02:42.3]} 10.
Nxf6+ {[%clk 0:02:48.4]} 10... Bxf6 {[%clk 0:02:42.3]} 11. Nf3 {[%clk
0:02:45.4]} 11... Bg4 {[%clk 0:02:39.8]} 12. h3 {[%clk 0:02:44]} 12... Bxf3
{[%clk 0:02:39.7]} 13. Qxf3 {[%clk 0:02:43.2]} 13... Nd4 {[%clk 0:02:39.6]} 14.
Qd1 {[%clk 0:02:36]} 14... Rc8 {[%clk 0:02:37]} 15. Bd3 {[%clk 0:02:25.7]} 15...
Bg5 {[%clk 0:01:57.3]} 16. Bxg5 {[%clk 0:02:18.3]} 16... Qxg5 {[%clk 0:01:57.4]}
17. c3 {[%clk 0:02:16.9]} 17... Qxg2 {[%clk 0:01:54.3]} 18. Rf1 {[%clk
0:02:08.4]} 18... Nf3+ {[%clk 0:01:54]} 19. Ke2 {[%clk 0:02:07.8]} 19... Ng5
{[%clk 0:01:46.6]} 20. Ke1 {[%clk 0:01:51.5]} 20... Nxe4 {[%clk 0:01:35.9]} 21.
Ke2 {[%clk 0:01:40.6]} 21... Ng3+ {[%clk 0:01:35.4]} 22. Ke3 {[%clk 0:01:33]}
22... Nxf1+ {[%clk 0:01:33.4]} 23. Bxf1 {[%clk 0:01:26.6]} 23... Qg5+ {[%clk
0:01:33.7]} 24. Ke2 {[%clk 0:01:26.3]} 24... Qh5+ {[%clk 0:01:32.6]} 25. Ke1
{[%clk 0:01:26.3]} 25... Qxd1+ {[%clk 0:01:31.2]} 26. Rxd1 {[%clk 0:01:26.4]}
26... Rfd8 {[%clk 0:01:32.5]} 27. Bg2 {[%clk 0:01:23.7]} 27... Rc7 {[%clk
0:01:26.5]} 28. Kf1 {[%clk 0:01:16.2]} 28... Kf8 {[%clk 0:01:26.8]} 29. Kg1
{[%clk 0:01:16]} 29... Ke7 {[%clk 0:01:26.8]} 30. Bd5 {[%clk 0:01:13.3]} 30...
Rc5 {[%clk 0:01:24.9]} 31. Bxb7 {[%clk 0:01:13]} 31... Rb5 {[%clk 0:01:25.6]}
32. Bd5 {[%clk 0:01:11]} 32... Rxb2 {[%clk 0:01:26.3]} 33. Bb3 {[%clk 0:01:11]}
33... Rc8 {[%clk 0:01:26.2]} 34. c4 {[%clk 0:01:09.9]} 34... Re2 {[%clk
0:01:26.3]} 35. Kf1 {[%clk 0:01:06.7]} 35... Re4 {[%clk 0:01:26]} 36. Rc1 {[%clk
0:01:02.3]} 36... Rh4 {[%clk 0:01:22.5]} 37. Kg2 {[%clk 0:01:02.3]} 37... a5
{[%clk 0:01:22.1]} 38. Kg3 {[%clk 0:01:00.7]} 38... Rd4 {[%clk 0:01:22.3]} 39.
Rc2 {[%clk 0:00:44.2]} 39... a4 {[%clk 0:01:19.1]} 40. Bxa4 {[%clk 0:00:36]}
40... Rcxc4 {[%clk 0:01:19.3]} 41. Rxc4 {[%clk 0:00:34.3]} 41... Rxc4 {[%clk
0:01:21.2]} 42. Bb3 {[%clk 0:00:34.6]} 42... Rc3+ {[%clk 0:01:22]} 43. Kg2
{[%clk 0:00:34.1]} 43... f5 {[%clk 0:01:21.4]} 44. f3 {[%clk 0:00:34.5]} 44...
f4 {[%clk 0:01:20.9]} 45. Bd5 {[%clk 0:00:30]} 45... Rc2+ {[%clk 0:01:20]} 46.
Kf1 {[%clk 0:00:25.7]} 46... Rd2 {[%clk 0:01:19.5]} 47. Bb3 {[%clk 0:00:20.2]}
47... d5 {[%clk 0:01:20.3]} 48. Ke1 {[%clk 0:00:19.5]} 48... Rd4 {[%clk
0:01:20.7]} 49. Ke2 {[%clk 0:00:20]} 49... e4 {[%clk 0:01:19.8]} 50. fxe4 {[%clk
0:00:20.1]} 50... dxe4 {[%clk 0:01:21.7]} 51. Kf2 {[%clk 0:00:19.7]} 51... Rd2+
{[%clk 0:01:21.7]} 52. Ke1 {[%clk 0:00:20.3]} 52... Rh2 {[%clk 0:01:22.2]} 53.
Kf1 {[%clk 0:00:20.9]} 53... e3 {[%clk 0:01:22.6]} 54. Ke1 {[%clk 0:00:20.9]}
54... f3 {[%clk 0:01:23]} 55. Kf1 {[%clk 0:00:21.2]} 55... Rh1# {[%clk
0:01:23.3]} 0

[Event "Open Nuevo Centro. Jornada 1"]
[Site "Chess.com"]
[Date "2020.06.19"]
[Round "1"]
[White "Juan Alos, Sergio"]
[Black "Lloret Ramis, Juan Jos�"]
[Result "0-1"]
[WhiteElo "1192"]
[BlackElo "1988"]
[TimeControl "180+2"]
[EndTime "10:39:19 PDT"]
[Termination "Victoria de Amiplim por abandono"]

1. d4 {[%clk 0:02:52.8]} 1... d5 {[%clk 0:03:00]} 2. Nf3 {[%clk 0:02:54.1]} 2...
e6 {[%clk 0:02:59.4]} 3. e3 {[%clk 0:02:54.4]} 3... Nf6 {[%clk 0:03:00.6]} 4. c3
{[%clk 0:02:53.2]} 4... c5 {[%clk 0:03:01.8]} 5. Bd3 {[%clk 0:02:52.8]} 5... Nc6
{[%clk 0:03:03.1]} 6. Nbd2 {[%clk 0:02:52.3]} 6... Bd6 {[%clk 0:03:04.3]} 7. O-O
{[%clk 0:02:52.6]} 7... O-O {[%clk 0:03:04.1]} 8. Qe2 {[%clk 0:02:53.8]} 8... e5
{[%clk 0:03:04.4]} 9. e4 {[%clk 0:02:50.7]} 9... cxd4 {[%clk 0:02:58.9]} 10.
cxd4 {[%clk 0:02:44.8]} 10... dxe4 {[%clk 0:02:38.6]} 11. Nxe4 {[%clk
0:02:37.8]} 11... Nxd4 {[%clk 0:01:48.4]} 12. Nxd4 {[%clk 0:02:25.9]} 12... exd4
{[%clk 0:01:48.3]} 13. Nxd6 {[%clk 0:02:26.2]} 13... Qxd6 {[%clk 0:01:46.7]} 14.
Bg5 {[%clk 0:02:23.6]} 14... Bg4 {[%clk 0:01:39.6]} 15. f3 {[%clk 0:02:20.5]}
15... Bh5 {[%clk 0:01:31.8]} 16. Qf2 {[%clk 0:01:51.4]} 16... Bg6 {[%clk
0:01:29.1]} 17. Bxg6 {[%clk 0:01:45.2]} 17... hxg6 {[%clk 0:01:28.5]} 18. Rfd1
{[%clk 0:01:44.4]} 18... Rfd8 {[%clk 0:01:19.9]} 19. Bxf6 {[%clk 0:01:42.5]}
19... Qxf6 {[%clk 0:01:20]} 20. b3 {[%clk 0:01:41.9]} 20... Rd6 {[%clk
0:01:19.9]} 21. Rac1 {[%clk 0:01:41.5]} 21... Rad8 {[%clk 0:01:10.1]} 22. Rd3
{[%clk 0:01:42]} 22... g5 {[%clk 0:00:44.7]} 23. Rc7 {[%clk 0:01:30.6]} 23...
Rc6 {[%clk 0:00:42.9]} 24. Rxc6 {[%clk 0:01:31]} 24... bxc6 {[%clk 0:00:38.4]}
25. g3 {[%clk 0:01:21]} 25... Qd6 {[%clk 0:00:37]} 26. Kg2 {[%clk 0:01:17.5]}
26... c5 {[%clk 0:00:34.2]} 27. Qc2 {[%clk 0:01:13.4]} 27... Qd5 {[%clk
0:00:33.3]} 28. h3 {[%clk 0:01:07.3]} 28... g6 {[%clk 0:00:32.5]} 29. g4 {[%clk
0:01:06.2]} 29... Re8 {[%clk 0:00:33.1]} 30. Kg3 {[%clk 0:00:58.3]} 30... Qe5+
{[%clk 0:00:33.7]} 31. Kg2 {[%clk 0:00:48.2]} 31... Qe2+ {[%clk 0:00:30.8]} 32.
Qxe2 {[%clk 0:00:47.6]} 32... Rxe2+ {[%clk 0:00:32.3]} 33. Kg3 {[%clk
0:00:49.3]} 33... Rxa2 {[%clk 0:00:33.5]} 34. b4 {[%clk 0:00:49.8]} 34... cxb4
{[%clk 0:00:29.7]} 35. Rxd4 {[%clk 0:00:50.8]} 35... a5 {[%clk 0:00:29.4]} 36.
Rd5 {[%clk 0:00:42.6]} 36... b3 {[%clk 0:00:25.7]} 37. Rb5 {[%clk 0:00:40.7]}
37... a4 {[%clk 0:00:22.8]} 38. h4 {[%clk 0:00:37.9]} 38... gxh4+ {[%clk
0:00:21.9]} 39. Kxh4 {[%clk 0:00:38.5]} 39... b2 {[%clk 0:00:23.1]} 40. Kg5
{[%clk 0:00:38.5]} 40... Kg7 {[%clk 0:00:24.4]} 41. f4 {[%clk 0:00:36.5]} 41...
a3 {[%clk 0:00:23.4]} 42. Rb3 {[%clk 0:00:23.2]} 42... Ra1 {[%clk 0:00:22.8]}
43. f5 {[%clk 0:00:22]} 43... gxf5 {[%clk 0:00:21.2]} 44. gxf5 {[%clk
0:00:19.3]} 44... Rg1+ {[%clk 0:00:22]} 45. Kf4 {[%clk 0:00:19.4]} 45... b1=Q
{[%clk 0:00:21.6]} 46. Rxb1 {[%clk 0:00:18.5]} 46... Rxb1 {[%clk 0:00:22.3]} 47.
Ke4 {[%clk 0:00:20.2]} 47... a2 {[%clk 0:00:23.4]} 48. Ke5 {[%clk 0:00:22]}
48... a1=Q+ {[%clk 0:00:23.9]} 49. Kd5 {[%clk 0:00:23.8]} 49... Re1 {[%clk
0:00:24.4]} 0

[Event "Open Nuevo Centro. Jornada 1"]
[Site "Chess.com"]
[Date "2020.06.19"]
[Round "1"]
[White "Ferrando Lacruz, Nicol�s "]
[Black "Bosch Jord�, Ricard"]
[Result "0-1"]
[WhiteElo "781"]
[BlackElo "1619"]
[TimeControl "180+2"]
[EndTime "10:39:19 PDT"]
[Termination "Victoria de UltimateLimo por jaque mate"]

1. d4 {[%clk 0:03:00.5]} 1... Nf6 {[%clk 0:03:00.2]} 2. Nf3 {[%clk 0:03:00.5]}
2... e6 {[%clk 0:02:56.5]} 3. Bf4 {[%clk 0:02:58.9]} 3... b6 {[%clk 0:02:56.5]}
4. e3 {[%clk 0:02:59.2]} 4... Bb7 {[%clk 0:02:57.3]} 5. Bd3 {[%clk 0:02:59]}
5... h6 {[%clk 0:02:54.8]} 6. Nbd2 {[%clk 0:02:58.2]} 6... Nh5 {[%clk
0:02:52.1]} 7. Ne5 {[%clk 0:02:56.2]} 7... Nxf4 {[%clk 0:02:51.7]} 8. exf4
{[%clk 0:02:56.1]} 8... Qf6 {[%clk 0:02:30.4]} 9. Ne4 {[%clk 0:02:41.9]} 9...
Qxf4 {[%clk 0:02:27]} 10. f3 {[%clk 0:02:32.2]} 10... Qe3+ {[%clk 0:01:58.5]}
11. Kf1 {[%clk 0:02:28.4]} 11... Qxd4 {[%clk 0:01:55.1]} 12. Ng4 {[%clk
0:02:13.9]} 12... f5 {[%clk 0:01:51.3]} 13. c3 {[%clk 0:01:49.2]} 13... Qd5
{[%clk 0:01:08.4]} 14. Ne3 {[%clk 0:01:34.8]} 14... Qe5 {[%clk 0:00:39.9]} 15.
Nc4 {[%clk 0:01:29.2]} 15... Qd5 {[%clk 0:00:34.3]} 16. Ned2 {[%clk 0:01:16.8]}
16... Qxd3+ {[%clk 0:00:34.6]} 17. Kf2 {[%clk 0:01:16.6]} 17... Bc5+ {[%clk
0:00:34.7]} 18. Kg3 {[%clk 0:01:16.5]} 18... f4+ {[%clk 0:00:32]} 19. Kxf4
{[%clk 0:01:15.7]} 19... O-O+ {[%clk 0:00:32.6]} 20. Kg4 {[%clk 0:01:15.4]}
20... Qg6+ {[%clk 0:00:33.1]} 21. Kh3 {[%clk 0:01:15.2]} 21... Qh5+ {[%clk
0:00:30.4]} 22. Kg3 {[%clk 0:01:15.2]} 22... Qg5+ {[%clk 0:00:21]} 23. Kh3
{[%clk 0:01:14.9]} 23... Be7 {[%clk 0:00:20.1]} 24. g4 {[%clk 0:01:05.6]} 24...
Qh4+ {[%clk 0:00:19.7]} 25. Kg2 {[%clk 0:01:06.2]} 25... Qxg4+ {[%clk
0:00:13.7]} 26. Kf1 {[%clk 0:01:06.5]} 26... Qh3+ {[%clk 0:00:10.8]} 27. Ke1
{[%clk 0:01:07]} 27... Bh4+ {[%clk 0:00:11]} 28. Ke2 {[%clk 0:01:06]} 28... Rxf3
{[%clk 0:00:11]} 29. Nxf3 {[%clk 0:01:05]} 29... Bxf3+ {[%clk 0:00:12.9]} 30.
Kd2 {[%clk 0:01:04.7]} 30... Bxd1 {[%clk 0:00:13.5]} 31. Raxd1 {[%clk
0:01:05.5]} 31... Bg5+ {[%clk 0:00:11.5]} 32. Kc2 {[%clk 0:01:05]} 32... Qg2+
{[%clk 0:00:11.4]} 33. Kb3 {[%clk 0:01:04.1]} 33... Qf3 {[%clk 0:00:09.3]} 34.
Rhf1 {[%clk 0:01:03.8]} 34... Qc6 {[%clk 0:00:09.5]} 35. Ne5 {[%clk 0:01:03.7]}
35... Qb5+ {[%clk 0:00:10.1]} 36. Kc2 {[%clk 0:01:04.4]} 36... Qxe5 {[%clk
0:00:11.4]} 37. Rfe1 {[%clk 0:01:03.2]} 37... Qf5+ {[%clk 0:00:12]} 38. Kb3
{[%clk 0:00:58.5]} 38... Na6 {[%clk 0:00:13]} 39. a4 {[%clk 0:00:57.3]} 39...
Nc5+ {[%clk 0:00:13.9]} 40. Ka2 {[%clk 0:00:57.8]} 40... Nxa4 {[%clk 0:00:14.7]}
41. b3 {[%clk 0:00:58]} 41... Nxc3+ {[%clk 0:00:15.2]} 42. Ka3 {[%clk 0:00:57]}
42... Nxd1 {[%clk 0:00:17.1]} 43. Rxd1 {[%clk 0:00:55]} 43... Qa5+ {[%clk
0:00:19]} 44. Kb2 {[%clk 0:00:55.4]} 44... Qd2+ {[%clk 0:00:18.5]} 45. Rxd2
{[%clk 0:00:56.1]} 45... Bxd2 {[%clk 0:00:20.4]} 46. Kc2 {[%clk 0:00:55.8]}
46... a5 {[%clk 0:00:21.7]} 47. Kxd2 {[%clk 0:00:55.7]} 47... a4 {[%clk
0:00:23]} 48. Kc2 {[%clk 0:00:55.9]} 48... axb3+ {[%clk 0:00:23.8]} 49. Kxb3
{[%clk 0:00:57]} 49... Kf7 {[%clk 0:00:24.8]} 50. Kc4 {[%clk 0:00:58]} 50... Ke7
{[%clk 0:00:25.4]} 51. Kd4 {[%clk 0:00:59.1]} 51... Kd6 {[%clk 0:00:26.8]} 52.
Ke4 {[%clk 0:01:00.3]} 52... Ra4+ {[%clk 0:00:27.5]} 53. Kf3 {[%clk 0:01:00.6]}
53... Ke5 {[%clk 0:00:28.7]} 54. Kg3 {[%clk 0:01:01.5]} 54... Kf5 {[%clk
0:00:29.8]} 55. h4 {[%clk 0:01:02.6]} 55... Ra3+ {[%clk 0:00:30.8]} 56. Kh2
{[%clk 0:01:00.7]} 56... Kg4 {[%clk 0:00:31.7]} 57. Kg2 {[%clk 0:01:00.8]} 57...
Ra2+ {[%clk 0:00:33]} 58. Kh1 {[%clk 0:01:01.8]} 58... Kg3 {[%clk 0:00:34]} 59.
Kg1 {[%clk 0:01:01.9]} 59... Ra1# {[%clk 0:00:35.9]} 0

[Event "Open Nuevo Centro. Jornada 1"]
[Site "Chess.com"]
[Date "2020.06.19"]
[Round "1"]
[White "Yuste Valenzuela, Alejandro"]
[Black "Maestre Soler, Sergio"]
[Result "1-0"]
[WhiteElo "1780"]
[BlackElo "939"]
[TimeControl "180+2"]
[EndTime "10:39:30 PDT"]
[Termination "Victoria de alejandrito290 por jaque mate"]

1. e4 {[%clk 0:03:01.2]} 1... e5 {[%clk 0:01:08]} 2. Nf3 {[%clk 0:02:59.2]} 2...
Bc5 {[%clk 0:01:07.8]} 3. d4 {[%clk 0:02:59]} 3... exd4 {[%clk 0:01:08.1]} 4.
Bc4 {[%clk 0:02:59.3]} 4... h6 {[%clk 0:01:06.4]} 5. O-O {[%clk 0:02:59.2]} 5...
Nc6 {[%clk 0:01:06.4]} 6. c3 {[%clk 0:03:00.2]} 6... dxc3 {[%clk 0:01:06.6]} 7.
Bxf7+ {[%clk 0:03:00.7]} 7... Kxf7 {[%clk 0:01:02.5]} 8. Qd5+ {[%clk 0:03:01.1]}
8... Ke8 {[%clk 0:00:58]} 9. Qh5+ {[%clk 0:03:01.2]} 9... Kf8 {[%clk 0:00:49.8]}
10. Qxc5+ {[%clk 0:03:01.3]} 10... d6 {[%clk 0:00:46.4]} 11. Qxc3 {[%clk
0:03:01.4]} 11... Qe8 {[%clk 0:00:35.7]} 12. b3 {[%clk 0:02:54.5]} 12... Qg6
{[%clk 0:00:35.5]} 13. Bb2 {[%clk 0:02:34.9]} 13... Bh3 {[%clk 0:00:33.2]} 14.
Nh4 {[%clk 0:02:35.2]} 14... Qg5 {[%clk 0:00:30.4]} 15. Qxh3 {[%clk 0:02:32.7]}
15... Nb4 {[%clk 0:00:22.2]} 16. Na3 {[%clk 0:02:26.1]} 16... Re8 {[%clk
0:00:19.5]} 17. Qf3+ {[%clk 0:02:03.1]} 17... Nf6 {[%clk 0:00:15.7]} 18. Bxf6
{[%clk 0:02:00.2]} 18... gxf6 {[%clk 0:00:14.6]} 19. Nf5 {[%clk 0:01:54.7]}
19... Rg8 {[%clk 0:00:12.9]} 20. Nc4 {[%clk 0:01:48.4]} 20... Nd3 {[%clk
0:00:10.6]} 21. Ng3 {[%clk 0:01:36.6]} 21... b5 {[%clk 0:00:08.5]} 22. Qxd3
{[%clk 0:01:35]} 22... bxc4 {[%clk 0:00:08.1]} 23. Qxc4 {[%clk 0:01:34.6]} 23...
h5 {[%clk 0:00:09.6]} 24. Qxc7 {[%clk 0:00:57.9]} 24... h4 {[%clk 0:00:09.4]}
25. Qxd6+ {[%clk 0:00:56.3]} 25... Kf7 {[%clk 0:00:07.7]} 26. Qd5+ {[%clk
0:00:50.9]} 26... Kg6 {[%clk 0:00:08.4]} 27. Qxg5+ {[%clk 0:00:49]} 27... Kxg5
{[%clk 0:00:08.4]} 28. f4+ {[%clk 0:00:36.1]} 28... Kh6 {[%clk 0:00:08.3]} 29.
Nf5+ {[%clk 0:00:36.8]} 29... Kh7 {[%clk 0:00:06.9]} 30. Rae1 {[%clk 0:00:35.8]}
30... a5 {[%clk 0:00:06.4]} 31. e5 {[%clk 0:00:35.4]} 31... fxe5 {[%clk
0:00:07]} 32. fxe5 {[%clk 0:00:37.3]} 32... Rg5 {[%clk 0:00:04.6]} 33. e6 {[%clk
0:00:31.6]} 33... Reg8 {[%clk 0:00:05.4]} 34. Re2 {[%clk 0:00:33]} 34... h3
{[%clk 0:00:05.9]} 35. g3 {[%clk 0:00:34.2]} 35... Rxf5 {[%clk 0:00:05.4]} 36.
Rxf5 {[%clk 0:00:36.1]} 36... Re8 {[%clk 0:00:05.3]} 37. e7 {[%clk 0:00:33.8]}
37... Kg6 {[%clk 0:00:06.5]} 38. Rxa5 {[%clk 0:00:33.6]} 38... Kf7 {[%clk
0:00:07.1]} 39. Rf5+ {[%clk 0:00:33.2]} 39... Kg6 {[%clk 0:00:05.9]} 40. Rf8
{[%clk 0:00:33.8]} 40... Rxe7 {[%clk 0:00:05.8]} 41. Rxe7 {[%clk 0:00:32]} 41...
Kg5 {[%clk 0:00:06.6]} 42. a4 {[%clk 0:00:29.3]} 42... Kg4 {[%clk 0:00:06.8]}
43. a5 {[%clk 0:00:30.7]} 43... Kg5 {[%clk 0:00:07.9]} 44. a6 {[%clk 0:00:31.7]}
44... Kh5 {[%clk 0:00:07.9]} 45. a7 {[%clk 0:00:30.2]} 45... Kh6 {[%clk
0:00:07.8]} 46. a8=Q {[%clk 0:00:30.2]} 46... Kh5 {[%clk 0:00:08.2]} 47. Qd5+
{[%clk 0:00:30.6]} 47... Kg6 {[%clk 0:00:08.4]} 48. Qf5+ {[%clk 0:00:30.9]}
48... Kh6 {[%clk 0:00:08.8]} 49. Rh7# {[%clk 0:00:31.6]} 1

[Event "Open Nuevo Centro. Jornada 1"]
[Site "Chess.com"]
[Date "2020.06.19"]
[Round "1"]
[White "Valverde Alcaide, Miguel Alejandro"]
[Black "Cebolla Ruiz, David"]
[Result "0-1"]
[WhiteElo "918"]
[BlackElo "1728"]
[TimeControl "180+2"]
[EndTime "10:39:41 PDT"]
[Termination "Victoria de Dabelcebolla por jaque mate"]

1. e4 {[%clk 0:02:52.9]} 1... c6 {[%clk 0:02:58.1]} 2. c4 {[%clk 0:02:50.4]}
2... d5 {[%clk 0:02:57.9]} 3. exd5 {[%clk 0:02:48.7]} 3... cxd5 {[%clk
0:02:59.2]} 4. cxd5 {[%clk 0:02:49.5]} 4... Qxd5 {[%clk 0:03:00.1]} 5. Nc3
{[%clk 0:02:44.9]} 5... Qa5 {[%clk 0:03:00.5]} 6. Bb5+ {[%clk 0:02:33.8]} 6...
Bd7 {[%clk 0:02:59.7]} 7. a4 {[%clk 0:02:30.2]} 7... Nf6 {[%clk 0:02:46.3]} 8.
h3 {[%clk 0:02:09.4]} 8... e5 {[%clk 0:02:43.6]} 9. f3 {[%clk 0:02:00.1]} 9...
Bb4 {[%clk 0:02:41.7]} 10. Qb3 {[%clk 0:01:50.3]} 10... Bxc3 {[%clk 0:02:35.7]}
11. Qxc3 {[%clk 0:01:46.9]} 11... Qxc3 {[%clk 0:02:31.6]} 12. dxc3 {[%clk
0:01:44.8]} 12... Bxb5 {[%clk 0:02:31.3]} 13. axb5 {[%clk 0:01:45.1]} 13... Nbd7
{[%clk 0:02:31.6]} 14. Be3 {[%clk 0:01:40.9]} 14... b6 {[%clk 0:02:22.7]} 15. f4
{[%clk 0:01:36.6]} 15... Nd5 {[%clk 0:02:18.4]} 16. Bd2 {[%clk 0:01:28.5]} 16...
Nxf4 {[%clk 0:02:10.1]} 17. Bxf4 {[%clk 0:01:16]} 17... exf4 {[%clk 0:02:09.7]}
18. O-O-O {[%clk 0:01:15.1]} 18... O-O-O {[%clk 0:02:06]} 19. Nf3 {[%clk
0:01:14]} 19... Nc5 {[%clk 0:01:59.7]} 20. Ng5 {[%clk 0:01:13.9]} 20... f6
{[%clk 0:00:48.6]} 21. Nf7 {[%clk 0:01:14]} 21... Rxd1+ {[%clk 0:00:48.8]} 22.
Rxd1 {[%clk 0:01:13.6]} 22... Rf8 {[%clk 0:00:48.6]} 23. Nd6+ {[%clk 0:01:09.5]}
23... Kb8 {[%clk 0:00:40]} 24. Nf5 {[%clk 0:01:08.9]} 24... g6 {[%clk
0:00:28.1]} 25. Ng7 {[%clk 0:01:07.9]} 25... Kc7 {[%clk 0:00:21.1]} 26. Kc2
{[%clk 0:01:08.7]} 26... Rd8 {[%clk 0:00:20.2]} 27. Rxd8 {[%clk 0:00:58.9]}
27... Kxd8 {[%clk 0:00:20.1]} 28. h4 {[%clk 0:00:54.8]} 28... Ke7 {[%clk
0:00:20.9]} 29. h5 {[%clk 0:00:49.6]} 29... Kf7 {[%clk 0:00:20.2]} 30. hxg6+
{[%clk 0:00:50.2]} 30... hxg6 {[%clk 0:00:20.9]} 31. c4 {[%clk 0:00:46.3]} 31...
Kxg7 {[%clk 0:00:21.4]} 32. Kc3 {[%clk 0:00:47.2]} 32... Ne4+ {[%clk 0:00:22.1]}
33. Kd3 {[%clk 0:00:48.3]} 33... Nc5+ {[%clk 0:00:22.9]} 34. Kd4 {[%clk
0:00:49.4]} 34... Kf7 {[%clk 0:00:23.6]} 35. Kd5 {[%clk 0:00:50]} 35... Ke7
{[%clk 0:00:23.2]} 36. b4 {[%clk 0:00:50.8]} 36... Nb3 {[%clk 0:00:22.2]} 37. c5
{[%clk 0:00:50.1]} 37... bxc5 {[%clk 0:00:23]} 38. bxc5 {[%clk 0:00:50.9]} 38...
Kd7 {[%clk 0:00:24.2]} 39. c6+ {[%clk 0:00:51]} 39... Kc7 {[%clk 0:00:24.9]} 40.
Kc4 {[%clk 0:00:49.5]} 40... Nd2+ {[%clk 0:00:20.2]} 41. Kc5 {[%clk 0:00:50.2]}
41... Ne4+ {[%clk 0:00:20.9]} 42. Kd5 {[%clk 0:00:50.5]} 42... Nd6 {[%clk
0:00:20.3]} 43. Ke6 {[%clk 0:00:47.5]} 43... Nxb5 {[%clk 0:00:20.6]} 44. Kxf6
{[%clk 0:00:48.3]} 44... Kxc6 {[%clk 0:00:21.5]} 45. Kxg6 {[%clk 0:00:49.4]}
45... a5 {[%clk 0:00:22.4]} 46. Kf5 {[%clk 0:00:50.2]} 46... a4 {[%clk
0:00:21.6]} 47. Kxf4 {[%clk 0:00:51.5]} 47... a3 {[%clk 0:00:23.1]} 48. g4
{[%clk 0:00:52.7]} 48... a2 {[%clk 0:00:24.6]} 49. g5 {[%clk 0:00:54]} 49...
a1=Q {[%clk 0:00:25.5]} 50. g6 {[%clk 0:00:55]} 50... Qg7 {[%clk 0:00:26.1]} 51.
Kg5 {[%clk 0:00:55.4]} 51... Kd6 {[%clk 0:00:27.1]} 52. Kg4 {[%clk 0:00:55.4]}
52... Ke6 {[%clk 0:00:28]} 53. Kg3 {[%clk 0:00:56.3]} 53... Qxg6+ {[%clk
0:00:28.4]} 54. Kf3 {[%clk 0:00:57.6]} 54... Qh5+ {[%clk 0:00:28.9]} 55. Ke3
{[%clk 0:00:59]} 55... Qg4 {[%clk 0:00:29]} 56. Kd3 {[%clk 0:01:00.3]} 56...
Qd4+ {[%clk 0:00:28.8]} 57. Kc2 {[%clk 0:00:56.8]} 57... Qc3+ {[%clk 0:00:27.5]}
58. Kd1 {[%clk 0:00:57]} 58... Qb2 {[%clk 0:00:24.5]} 59. Ke1 {[%clk 0:00:56.9]}
59... Nd4 {[%clk 0:00:25]} 60. Kf1 {[%clk 0:00:57.3]} 60... Qh2 {[%clk
0:00:20.2]} 61. Ke1 {[%clk 0:00:56.8]} 61... Nf3+ {[%clk 0:00:20]} 62. Kd1
{[%clk 0:00:56.4]} 62... Qd2# {[%clk 0:00:20.8]} 0